bitfinex-derivatives/quotes_BTCF0:USTF0_20251210
["timestamp","ask_amount","ask_price","bid_price","bid_amount"]
[1765407763650,0.67306,92518.0,92517.0,1.23020423]
[1765407764038,0.67306,92518.0,92517.0,1.1993768]
[1765407764039,0.67318433,92518.0,92517.0,1.1993768]
[1765407764244,0.67318433,92518.0,92517.0,1.5601768]
[1765407764651,0.00112433,92518.0,92517.0,1.5751768]
[1765407764851,0.00212433,92518.0,92517.0,1.5891768]
[1765407765662,0.00112433,92518.0,92517.0,1.5741768]
[1765407765859,0.00112433,92518.0,92517.0,1.5751768]
[1765407766358,0.00112433,92518.0,92517.0,1.5741768]
[1765407766569,0.00112433,92518.0,92517.0,1.5601768]
[1765407767162,0.00012433,92518.0,92517.0,1.5601768]
[1765407767458,0.00112433,92518.0,92517.0,1.5601768]
[1765407768159,0.00016211,92527.0,92526.0,0.7994758]
[1765407768365,0.00016211,92527.0,92526.0,1.1602758]
[1765407769164,0.00016211,92527.0,92526.0,1.6624758]
[1765407769665,0.67322211,92527.0,92526.0,0.7309158]
[1765407769864,0.67322211,92527.0,92526.0,1.0580958]
[1765407770456,0.67422211,92527.0,92526.0,1.0700958]
[1765407770657,0.67522211,92527.0,92526.0,1.0820958]
[1765407771258,0.67422211,92527.0,92526.0,1.0700958]
[1765407771466,0.32588211,92527.0,92526.0,1.0580958]
[1765407771671,0.32688211,92527.0,92526.0,1.0580958]
[1765407772367,0.67422211,92527.0,92517.0,0.3608]
[1765407772663,0.8842,92526.0,92525.0,0.6972959]
[1765407772875,0.67306,92526.0,92525.0,0.6972959]
[1765407773175,0.8842,92526.0,92525.0,0.6972959]
[1765407773869,0.67306,92526.0,92525.0,0.6972959]
[1765407774469,0.67406,92526.0,92525.0,0.6972959]
[1765407775276,0.32672,92526.0,92525.0,0.6972959]
[1765407775574,0.67406,92526.0,92525.0,0.6972959]
[1765407776071,0.001,92526.0,92525.0,0.6972959]
[1765407776278,0.00016211,92527.0,92526.0,0.89027]
[1765407777580,0.00016211,92527.0,92526.0,0.89127]
[1765407777876,0.68402781,92527.0,92526.0,0.001]
[1765407778070,0.68402781,92527.0,92517.0,0.70139]
[1765407778071,0.6875367,92518.0,92517.0,0.70139]
[1765407778264,0.35739,92526.0,92525.0,0.0108058]
[1765407778468,0.35739,92526.0,92525.0,0.7003558]
[1765407779074,0.7084,92526.0,92525.0,0.7003558]
[1765407779472,0.00116211,92527.0,92526.0,0.88821]
[1765407779672,1.0692,92549.0,92548.0,0.68955]
[1765407779975,0.91544,92561.0,92560.0,0.68955]
[1765407780278,0.0108018,92561.0,92560.0,0.68955]
[1765407780474,0.0108002,92574.0,92554.0,0.19866]
[1765407780475,0.0107995,92580.0,92564.0,0.34208]
[1765407780671,0.9262401,92575.0,92574.0,0.68955]
[1765407780867,0.7192011,92566.0,92565.0,0.00016211]
[1765407781071,1.0800011,92566.0,92565.0,0.00016211]
[1765407781274,1.0800011,92566.0,92565.0,0.68971211]
[1765407782074,1.0800011,92566.0,92565.0,0.00016211]
[1765407782273,1.0800011,92566.0,92565.0,0.34763211]
[1765407783172,1.0810011,92566.0,92565.0,0.34763211]
[1765407784865,1.0810011,92566.0,92565.0,0.00016211]
[1765407785072,0.8805,92552.0,92551.0,0.68955]
[1765407786775,0.8815,92552.0,92551.0,0.70055]
[1765407787171,0.8815,92552.0,92551.0,0.011]
[1765407787373,0.8815,92552.0,92551.0,0.70055]
[1765407787882,0.7094,92552.0,92551.0,0.70055]
[1765407788084,0.7104,92552.0,92551.0,0.71255]
[1765407788781,0.3608,92558.0,92551.0,0.71255]
[1765407789082,0.3608,92568.0,92567.0,0.700351]
[1765407790474,0.71819,92568.0,92567.0,0.700351]
[1765407791385,0.72019,92568.0,92567.0,0.700351]
[1765407791582,1.27824,92568.0,92567.0,0.68955]
[1765407791887,0.7192019,92559.0,92558.0,0.00016211]
[1765407793985,0.7192019,92559.0,92558.0,0.34763211]
[1765407794186,0.7192019,92559.0,92558.0,0.00016211]
[1765407794589,0.7192019,92559.0,92558.0,0.00116211]
[1765407795680,0.7192019,92559.0,92558.0,0.70723211]
[1765407795880,0.7192019,92559.0,92558.0,0.35018211]
[1765407796190,0.7192019,92559.0,92558.0,0.00116211]
[1765407797192,0.7192019,92559.0,92558.0,0.70723211]
[1765407798281,0.7192019,92559.0,92558.0,0.00116211]
[1765407800091,0.56784,92560.0,92535.0,0.70607]
[1765407800092,0.76079,92536.0,92535.0,0.70607]
[1765407800285,1.02447,92536.0,92535.0,0.70607]
[1765407801685,1.23606,92536.0,92535.0,0.029]
[1765407802796,1.23606,92536.0,92535.0,0.0054706]
[1765407803094,1.23506,92536.0,92535.0,0.0054706]
[1765407803289,1.23606,92536.0,92535.0,0.0054706]
[1765407803493,0.6744757,92527.0,92526.0,0.00016211]
[1765407803694,1.0352757,92527.0,92526.0,0.00016211]
[1765407804489,0.6744775,92511.0,92510.0,0.70607]
[1765407804792,0.6744789,92499.0,92498.0,0.70607]
[1765407804995,0.6744789,92499.0,92498.0,0.73631991]
[1765407805196,0.6744789,92499.0,92498.0,0.70607]
[1765407805994,0.66367,92499.0,92498.0,0.70607]
[1765407806390,0.3488286,92502.0,92501.0,0.70607]
[1765407806595,0.6744786,92502.0,92501.0,0.70607]
[1765407807591,0.6764786,92502.0,92501.0,0.72707]
[1765407807795,0.8860686,92502.0,92501.0,0.72707]
[1765407809089,0.8860686,92502.0,92501.0,0.021]
[1765407810501,0.8850686,92502.0,92501.0,0.01]
[1765407810695,0.8850686,92502.0,92491.0,0.0108098]
[1765407810696,0.67251,92492.0,92491.0,0.0108098]
[1765407810896,0.67251,92492.0,92491.0,0.7125798]
[1765407811198,0.34823,92492.0,92491.0,0.7125798]
[1765407811398,0.008,92502.0,92501.0,0.70177]
[1765407811798,0.68051,92502.0,92501.0,0.70177]
[1765407812599,0.67751,92502.0,92501.0,0.70177]
[1765407812998,0.67251,92502.0,92501.0,0.70177]
[1765407813393,0.67551,92502.0,92501.0,0.70177]
[1765407813599,0.68051,92502.0,92501.0,0.70277]
[1765407817398,0.68051,92502.0,92501.0,0.001]
[1765407822494,0.6833199,92491.0,92489.0,5e-08]
[1765407822696,0.683322,92473.0,92472.0,1.06257]
[1765407825115,0.684322,92473.0,92472.0,1.07057]
[1765407825293,0.684322,92473.0,92472.0,0.008]
[1765407825493,0.6833228,92466.0,92453.0,0.4108]
[1765407826707,0.68341745,92466.0,92454.0,0.0108142]
[1765407826912,0.68741745,92466.0,92465.0,0.0020815]
[1765407828408,0.69241745,92466.0,92465.0,0.0030815]
[1765407828612,0.69241745,92466.0,92453.0,0.4108]
[1765407828613,0.6833242,92454.0,92453.0,0.05]
[1765407828814,1.54707313,92454.0,92453.0,1e-07]
[1765407829904,1.63295922,92454.0,92453.0,1e-07]
[1765407830805,0.6833257,92441.0,92440.0,0.00108179]
[1765407831112,1.04424994,92441.0,92440.0,0.00108179]
[1765407831520,0.6833283,92419.0,92418.0,1.06257]
[1765407831818,0.6833283,92419.0,92418.0,0.01691203]
[1765407831819,0.68342302,92419.0,92418.0,0.01691203]
[1765407832021,0.67251,92416.0,92415.0,0.00108208]
[1765407832417,0.6833286,92416.0,92415.0,0.70285208]
[1765407833315,0.6833286,92416.0,92415.0,0.71976681]
[1765407834122,0.6853286,92416.0,92415.0,0.72276681]
[1765407834417,0.6863286,92416.0,92415.0,0.72276681]
[1765407838814,0.003,92416.0,92415.0,0.73358561]
[1765407839611,0.88693,92416.0,92415.0,0.72276681]
[1765407840017,0.68584,92416.0,92415.0,0.73358561]
[1765407840314,0.003,92416.0,92415.0,0.73358561]
[1765407841108,0.34913,92416.0,92415.0,0.73358561]
[1765407841509,0.003,92416.0,92415.0,0.73358561]
[1765407842011,0.51545545,92440.0,92427.0,0.7103673]
[1765407842012,0.3608,92440.0,92427.0,0.7103673]
[1765407842211,0.3608,92449.0,92448.0,0.7103649]
[1765407842520,0.88393,92456.0,92455.0,0.359]
[1765407842724,0.894744,92456.0,92455.0,0.359]
[1765407843123,0.89479243,92456.0,92455.0,0.359]
[1765407843417,0.89479243,92456.0,92455.0,0.69955]
[1765407843610,4.843e-05,92456.0,92455.0,0.69955]
[1765407844006,0.00904843,92456.0,92455.0,0.70055]
[1765407844209,0.00904843,92456.0,92455.0,0.71745754]
[1765407844413,0.02886243,92456.0,92455.0,0.71745754]
[1765407844717,0.02886243,92456.0,92455.0,0.001]
[1765407844718,0.71170243,92456.0,92455.0,0.001]
[1765407844922,0.70270243,92456.0,92455.0,0.001]
[1765407845118,0.71070243,92456.0,92455.0,0.001]
[1765407845325,0.71070243,92456.0,92455.0,0.01790792]
[1765407845515,0.01704843,92456.0,92455.0,0.71745792]
[1765407845720,0.36117843,92456.0,92455.0,0.71745792]
[1765407846116,0.69788843,92456.0,92455.0,0.71745792]
[1765407847315,4.843e-05,92456.0,92455.0,0.71645792]
[1765407847515,0.00016231,92465.0,92464.0,0.710363]
[1765407847821,0.00016231,92465.0,92464.0,1.59147092]
[1765407848018,0.34613,92487.0,92486.0,0.7103604]
[1765407848218,0.68284,92487.0,92486.0,0.01690792]
[1765407848416,0.6936514,92478.0,92477.0,1.2138015]
[1765407848617,0.6936514,92478.0,92477.0,1.23070485]
[1765407848818,0.3569414,92478.0,92477.0,1.23070485]
[1765407849213,0.3569414,92478.0,92477.0,0.01690335]
[1765407849214,0.6936514,92478.0,92477.0,0.01690335]
[1765407849414,1.0544514,92478.0,92477.0,0.01690335]
[1765407849712,0.69381251,92487.0,92486.0,0.69955]
[1765407849919,0.3673814,92478.0,92477.0,0.66954]
[1765407850120,0.3673814,92478.0,92477.0,0.68644334]
[1765407850324,0.7202814,92478.0,92477.0,0.68644334]
[1765407850922,0.21277999,92530.0,92489.0,0.66854]
[1765407851122,0.3608,92528.0,92514.0,0.66854]
[1765407851328,0.71055091,92515.0,92514.0,0.37770334]
[1765407851819,0.00108091,92515.0,92514.0,1.0462372]
[1765407852414,0.35765091,92515.0,92514.0,1.0462372]
[1765407852627,0.73035801,92515.0,92514.0,0.7045772]
[1765407852826,0.73035801,92515.0,92514.0,0.68768]
[1765407853324,0.74135801,92515.0,92514.0,0.68768]
[1765407854427,0.74135801,92515.0,92514.0,1.03034]
[1765407854629,0.73055091,92515.0,92514.0,1.03034]
[1765407856631,0.73055091,92515.0,92514.0,0.3618]
[1765407857625,0.7202781,92506.0,92505.0,0.00016221]
[1765407857827,1.0810781,92506.0,92505.0,0.00016221]
[1765407858931,1.0880781,92506.0,92505.0,0.00116221]
[1765407859126,1.0880781,92506.0,92505.0,0.66970221]
[1765407859331,0.72547,92506.0,92505.0,0.66970221]
[1765407859529,0.72647,92506.0,92505.0,0.68051041]
[1765407859833,0.008,92506.0,92505.0,0.68051041]
[1765407860026,0.019,92506.0,92505.0,0.68051041]
[1765407860537,0.017,92506.0,92505.0,0.68051041]
[1765407861033,0.016,92506.0,92505.0,0.68051041]
[1765407861822,0.017,92506.0,92505.0,0.68051041]
[1765407862429,0.72647,92506.0,92505.0,0.66970221]
[1765407862732,0.017,92506.0,92505.0,0.66970221]
[1765407867650,0.7372781,92506.0,92505.0,0.00116221]
[1765407867936,1.0980781,92506.0,92505.0,0.00116221]
[1765407872643,1.0980781,92506.0,92505.0,0.32704221]
[1765407872830,1.0980781,92506.0,92505.0,0.68142221]
[1765407873641,0.7372781,92506.0,92505.0,0.68142221]
[1765407874538,0.72647,92506.0,92505.0,0.68142221]
[1765407874740,0.017,92506.0,92505.0,0.68142221]
[1765407874931,0.017,92506.0,92505.0,0.69831983]
[1765407875531,0.017,92506.0,92505.0,1.05911983]
[1765407876133,0.017,92506.0,92505.0,1.59458029]
[1765407876643,0.36995,92506.0,92505.0,1.59458029]
[1765407877140,0.017,92506.0,92505.0,1.6231637]
[1765407877450,0.013,92506.0,92505.0,1.59458029]
[1765407878741,0.011,92506.0,92505.0,1.59458029]
[1765407878935,0.011,92506.0,92505.0,1.56279983]
[1765407879137,0.011,92506.0,92505.0,1.59464807]
[1765407879332,0.011,92506.0,92505.0,1.63314244]
[1765407879547,0.00108091,92515.0,92514.0,0.7211372]
[1765407879747,0.00108091,92515.0,92514.0,0.76988306]
[1765407880237,0.36483801,92515.0,92514.0,0.79872099]
[1765407880443,0.68892801,92515.0,92514.0,0.7987367]
[1765407881041,0.00108091,92515.0,92514.0,0.7987367]
[1765407881243,0.00608091,92515.0,92514.0,0.80933363]
[1765407882158,0.01208091,92515.0,92514.0,0.80933363]
[1765407882357,0.00016221,92524.0,92523.0,0.71033]
[1765407882654,0.19542,92560.0,92552.0,0.71033]
[1765407882655,0.0108027,92553.0,92552.0,0.71033]
[1765407883048,0.6878423,92556.0,92555.0,0.71033]
[1765407883258,0.6878423,92556.0,92555.0,1.12088732]
[1765407884551,0.6918423,92556.0,92555.0,1.12188732]
[1765407885354,0.6968423,92556.0,92555.0,1.12288732]
[1765407886357,0.6968423,92556.0,92555.0,1.09002217]
[1765407887256,0.6968423,92556.0,92555.0,0.37969217]
[1765407888365,0.6968423,92556.0,92555.0,0.73564217]
[1765407888662,0.6968423,92556.0,92555.0,1.09002217]
[1765407889266,0.6968423,92556.0,92555.0,0.37969217]
[1765407889564,0.6968423,92556.0,92555.0,0.002]
[1765407890655,0.009,92556.0,92555.0,0.71233]
[1765407891754,0.68604,92556.0,92555.0,0.71233]
[1765407892855,0.68604,92556.0,92555.0,0.002]
[1765407895360,0.68604,92556.0,92546.0,0.00016212]
[1765407895361,0.8832633,92547.0,92546.0,0.00016212]
[1765407895667,0.6878455,92528.0,92527.0,0.71033]
[1765407895856,0.6878455,92528.0,92527.0,0.74276147]
[1765407897164,0.6878455,92528.0,92527.0,0.71033]
[1765407897364,0.6888455,92528.0,92527.0,0.72133]
[1765407898671,0.6898455,92528.0,92527.0,0.73333]
[1765407900368,0.6898455,92528.0,92527.0,0.76577037]
[1765407900865,0.6898455,92528.0,92527.0,0.05544037]
[1765407901174,0.6898455,92528.0,92527.0,0.023]
[1765407901362,0.6898455,92528.0,92527.0,0.00775243]
[1765407901663,0.7066466,92519.0,92518.0,0.00016212]
[1765407901866,0.7066473,92513.0,92512.0,0.0574246]
[1765407902065,0.7066473,92513.0,92512.0,0.7170246]
[1765407902266,0.7066473,92513.0,92512.0,0.0574246]
[1765407902567,0.3585283,92504.0,92503.0,0.73616614]
[1765407902760,1.05664,92509.0,92508.0,0.6596]
[1765407903067,0.7066478,92509.0,92508.0,0.6596]
[1765407904067,0.7076478,92509.0,92508.0,0.6616]
[1765407904454,0.7076478,92509.0,92508.0,0.002]
[1765407905067,0.7076478,92509.0,92508.0,0.33099]
[1765407905563,0.7076478,92509.0,92508.0,0.6616]
[1765407905958,0.7086478,92509.0,92508.0,0.6676]
[1765407909975,0.7086478,92509.0,92508.0,0.008]
[1765407910272,0.0108083,92504.0,92503.0,0.07656614]
[1765407910475,0.7092194,92495.0,92490.0,0.0010812]
[1765407910767,0.7092206,92485.0,92484.0,0.13399074]
[1765407910961,1.0700206,92485.0,92484.0,0.13399074]
[1765407911160,1.0700206,92485.0,92484.0,0.48543074]
[1765407911473,1.0700206,92485.0,92484.0,0.83864074]
[1765407912276,1.0710206,92485.0,92484.0,0.83864074]
[1765407912476,1.0710206,92485.0,92484.0,0.70465]
[1765407913266,1.0720206,92485.0,92484.0,0.70465]
[1765407916361,0.7112206,92485.0,92484.0,0.70465]
[1765407916772,0.002,92485.0,92484.0,0.7154607]
[1765407916977,0.002,92485.0,92484.0,0.9206107]
[1765407917673,0.70041,92485.0,92484.0,0.70465]
[1765407918764,0.002,92485.0,92484.0,0.70465]
[1765407919168,0.002,92485.0,92484.0,0.9098]
[1765407920879,0.002,92485.0,92484.0,0.9998]
[1765407921980,0.002,92485.0,92484.0,0.9298]
[1765407922182,0.002,92485.0,92484.0,0.9098]
[1765407926178,0.002,92485.0,92484.0,0.93954641]
[1765407928692,0.66467,92482.0,92481.0,0.00010728]
[1765407928990,0.66467,92476.0,92475.0,2e-08]
[1765407929176,1.02547,92476.0,92475.0,2e-08]
[1765407929375,1.42547,92476.0,92475.0,2e-08]
[1765407929877,1.4255532,92476.0,92475.0,2e-08]
[1765407930581,1.4365532,92476.0,92475.0,2e-08]
[1765407930778,1.4465532,92476.0,92475.0,2e-08]
[1765407931689,1.0465532,92476.0,92475.0,2e-08]
[1765407936191,0.6754828,92466.0,92465.0,2e-08]
[1765407936381,1.0362828,92466.0,92465.0,2e-08]
[1765407936580,1.03639008,92466.0,92465.0,2e-08]
[1765407937086,1.54027008,92466.0,92465.0,2e-08]
[1765407938283,1.54827008,92466.0,92465.0,2e-08]
[1765407939094,1.55727008,92466.0,92465.0,2e-08]
[1765407940993,1.55727008,92466.0,92465.0,0.33548002]
[1765407941193,1.23200008,92466.0,92465.0,2e-08]
[1765407941395,0.38872008,92466.0,92465.0,2e-08]
[1765407942094,1.05339008,92466.0,92465.0,0.70415292]
[1765407942283,1.04257728,92466.0,92465.0,0.70415292]
[1765407942888,0.37790728,92466.0,92465.0,2e-08]
[1765407943090,0.57841728,92466.0,92465.0,2e-08]
[1765407946390,1.08225728,92466.0,92465.0,2e-08]
[1765407954394,1.19029844,92466.0,92465.0,2e-08]
[1765407956002,1.19040572,92466.0,92465.0,2e-08]
[1765407956200,1.19037527,92466.0,92465.0,2e-08]
[1765407956507,0.57831,92466.0,92465.0,2e-08]
[1765407956706,1.08207,92466.0,92465.0,2e-08]
[1765407957004,1.08216429,92466.0,92465.0,2e-08]
[1765407957592,0.57840429,92466.0,92465.0,2e-08]
[1765407957792,1.73944429,92466.0,92465.0,0.33548002]
[1765407957997,1.08216429,92466.0,92465.0,2e-08]
[1765407961702,0.20798,92448.0,92440.0,0.32559179]
[1765407961900,0.68974,92441.0,92440.0,0.32559179]
[1765407962094,0.7005557,92441.0,92440.0,0.32559179]
[1765407962307,0.7005557,92441.0,92440.0,0.00108179]
[1765407962913,0.7005557,92441.0,92440.0,0.00208179]
[1765407963608,0.7015557,92441.0,92440.0,0.00208179]
[1765407963814,0.7025557,92441.0,92440.0,0.65222179]
[1765407967000,0.002,92441.0,92440.0,0.69975359]
[1765407967305,0.69174,92441.0,92440.0,0.69975359]
[1765407968906,0.69174,92441.0,92440.0,0.68284344]
[1765407969112,0.69174,92441.0,92440.0,0.69975374]
[1765407969313,0.69174,92441.0,92440.0,0.68284344]
[1765407970199,0.69174,92441.0,92440.0,0.68402816]
[1765407972207,0.69174,92441.0,92440.0,0.03388816]
[1765407972518,0.69174,92441.0,92440.0,0.00208179]
[1765407972519,1.05254,92441.0,92440.0,0.00208179]
[1765407973011,0.68974,92428.0,92427.0,0.6791491]
[1765407973212,1.06143291,92428.0,92427.0,0.72742853]
[1765407973420,1.06143291,92428.0,92427.0,0.69841943]
[1765407973808,0.01089291,92428.0,92427.0,0.72742853]
[1765407974010,0.34740291,92428.0,92427.0,0.69841943]
[1765407974208,0.70063291,92428.0,92427.0,0.69841943]
[1765407974513,0.70163291,92428.0,92427.0,0.69841943]
[1765407975216,0.70263291,92428.0,92427.0,0.69841943]
[1765407975420,0.34940291,92428.0,92427.0,0.69841943]
[1765407975623,0.01289291,92428.0,92427.0,0.69841943]
[1765407976024,0.01289291,92428.0,92427.0,0.69841933]
[1765407976318,0.01289291,92428.0,92427.0,0.72744844]
[1765407977825,1.20627291,92428.0,92427.0,0.03136721]
[1765407978021,0.7214983,92419.0,92418.0,0.02902911]
[1765407978323,0.7214983,92419.0,92418.0,0.03216896]
[1765407978520,0.9306386,92416.0,92415.0,0.34330208]
[1765407978711,0.93074588,92416.0,92415.0,0.37545801]
[1765407979111,0.93074588,92416.0,92415.0,0.00108208]
[1765407980017,0.93074588,92416.0,92415.0,0.68060208]
[1765407980611,0.93274588,92416.0,92415.0,0.68060208]
[1765407980814,0.93374588,92416.0,92415.0,0.68060208]
[1765407981415,0.93274588,92416.0,92415.0,0.68060208]
[1765407981927,0.93274588,92416.0,92415.0,0.00108208]
[1765407982820,0.93274588,92416.0,92415.0,0.34330208]
[1765407983220,0.93274588,92416.0,92415.0,0.00108208]
[1765407986026,0.93274588,92416.0,92415.0,0.34330208]
[1765407986930,0.93274588,92416.0,92415.0,0.68060208]
[1765407987730,0.93274588,92416.0,92415.0,0.00108208]
[1765407991336,1.29354588,92416.0,92415.0,0.00108208]
[1765407993533,1.29354588,92416.0,92415.0,0.67365208]
[1765407993843,1.29354588,92416.0,92415.0,0.00108208]
[1765407994425,1.08440588,92416.0,92415.0,0.67365208]
[1765407995038,1.04666588,92416.0,92415.0,0.67365208]
[1765407995725,1.05166588,92416.0,92415.0,0.67365208]
[1765407996029,1.05766588,92416.0,92415.0,0.67365208]
[1765407998938,1.05766588,92416.0,92415.0,0.00108208]
[1765407999336,1.05766588,92416.0,92415.0,0.67365208]
[1765407999941,1.05766588,92416.0,92415.0,0.00108208]
[1765408000442,1.05766588,92416.0,92415.0,0.33175208]
[1765408000741,1.05766588,92416.0,92415.0,0.67365208]
[1765408002344,1.05766588,92416.0,92415.0,0.00108208]
[1765408005433,0.6837609,92397.0,92396.0,0.67257]
[1765408005741,0.6837609,92397.0,92396.0,0.70436843]
[1765408006341,0.3608,92400.0,92399.0,0.67257]
[1765408006532,0.3608,92400.0,92399.0,0.71518903]
[1765408006842,0.36093863,92400.0,92399.0,0.71518903]
[1765408007446,0.36093863,92400.0,92399.0,0.70436843]
[1765408008042,1.03487863,92400.0,92399.0,0.70436843]
[1765408008238,1.24455863,92400.0,92399.0,0.70436843]
[1765408008433,1.24655863,92400.0,92399.0,0.70436843]
[1765408008747,1.03687863,92400.0,92399.0,0.70436843]
[1765408011448,1.24655863,92400.0,92399.0,0.70436843]
[1765408012748,0.36393863,92400.0,92399.0,0.70436843]
[1765408013147,0.69445863,92400.0,92399.0,0.70436843]
[1765408013730,0.36393863,92400.0,92399.0,0.70436843]
[1765408017236,0.00313863,92400.0,92399.0,0.70436843]
[1765408017434,0.00313863,92400.0,92399.0,1.20780843]
[1765408017744,0.00313863,92400.0,92399.0,1.23683754]
[1765408018348,0.00313863,92400.0,92399.0,1.20780843]
[1765408020252,0.00313863,92400.0,92399.0,1.23691793]
[1765408020653,0.32887863,92400.0,92399.0,1.20780843]
[1765408020956,0.68663863,92400.0,92399.0,1.23691821]
[1765408021553,0.00313863,92400.0,92399.0,1.23691821]
[1765408021944,0.32887863,92400.0,92399.0,1.23691821]
[1765408022151,0.00313863,92400.0,92399.0,1.23691821]
[1765408022352,0.88457863,92400.0,92399.0,0.73347821]
[1765408022658,0.6835,92391.0,92390.0,0.00108237]
[1765408022853,1.0551216,92391.0,92390.0,0.00108237]
[1765408024154,1.0561216,92391.0,92390.0,0.00108237]
[1765408024942,1.0571216,92391.0,92390.0,0.00108237]
[1765408028255,1.56068799,92391.0,92390.0,0.00108237]
[1765408028462,0.6943229,92380.0,92379.0,0.00021628]
[1765408028648,0.69445844,92380.0,92379.0,0.00021628]
[1765408028854,0.6943245,92366.0,92365.0,0.00108267]
[1765408029159,1.55870974,92366.0,92365.0,0.00108267]
[1765408029660,1.55870974,92366.0,92365.0,0.65569267]
[1765408030147,1.05522974,92366.0,92365.0,0.65569267]
[1765408030344,1.55870974,92366.0,92365.0,0.32822267]
[1765408030547,1.55870974,92366.0,92365.0,0.65963267]
[1765408031353,1.55970974,92366.0,92365.0,0.65963267]
[1765408032352,1.05622974,92366.0,92365.0,0.65963267]
[1765408032546,0.68764524,92366.0,92365.0,0.65963267]
[1765408032749,0.36290524,92366.0,92365.0,0.85916267]
[1765408033561,1.03829524,92366.0,92365.0,0.65963267]
[1765408034854,0.36290524,92366.0,92365.0,0.85916267]
[1765408036053,0.70760524,92366.0,92365.0,0.65963267]
[1765408036461,0.36290524,92366.0,92365.0,0.65963267]
[1765408037363,1.03829524,92366.0,92365.0,0.00108267]
[1765408037562,1.03829524,92366.0,92365.0,0.67679267]
[1765408039970,0.36290524,92366.0,92365.0,0.87632267]
[1765408041365,1.03829524,92366.0,92365.0,0.67679267]
[1765408047469,0.67749524,92366.0,92365.0,0.67679267]
[1765408048469,0.67749524,92366.0,92365.0,0.70874175]
[1765408049266,0.00210524,92366.0,92365.0,0.91247175]
[1765408050385,0.0001624,92375.0,92374.0,0.6845336]
[1765408050668,0.0108218,92389.0,92374.0,1.23700795]
[1765408050870,1.05134,92394.0,92393.0,0.67371]
[1765408051170,1.0621612,92394.0,92393.0,0.67371]
[1765408051767,1.06224313,92394.0,92393.0,0.67371]
[1765408052170,1.07124313,92394.0,92393.0,0.67371]
[1765408053472,1.08124313,92394.0,92393.0,0.67371]
[1765408054466,0.69054,92385.0,92384.0,0.6738724]
[1765408054675,0.69054,92385.0,92384.0,0.03213781]
[1765408054970,0.69054,92385.0,92384.0,0.0001624]
[1765408055163,0.6906516,92385.0,92384.0,0.0001624]
[1765408055563,0.6976516,92385.0,92384.0,0.0001624]
[1765408055965,0.7056516,92385.0,92384.0,0.0001624]
[1765408058267,0.7056516,92385.0,92384.0,0.6738724]
[1765408062074,1.0664516,92385.0,92384.0,0.0001624]
[1765408064769,1.0664516,92385.0,92384.0,0.6738724]
[1765408065477,0.0108207,92399.0,92384.0,0.80820461]
[1765408065677,0.69054,92399.0,92398.0,0.67371]
[1765408066774,0.70054,92399.0,92398.0,0.67371]
[1765408066976,0.71154,92399.0,92398.0,0.67371]
[1765408067363,0.70154,92399.0,92398.0,0.67371]
[1765408067668,0.71154,92399.0,92398.0,0.67371]
[1765408068178,0.36979,92399.0,92398.0,0.67371]
[1765408068382,0.021,92399.0,92398.0,0.67371]
[1765408068564,0.021,92399.0,92398.0,0.7061379]
[1765408068973,0.36179,92399.0,92398.0,0.7081379]
[1765408069173,0.013,92399.0,92398.0,0.7081379]
[1765408069377,0.013,92399.0,92398.0,0.67571]
[1765408069686,0.70254,92399.0,92398.0,0.67571]
[1765408069981,0.70054,92399.0,92398.0,0.67571]
[1765408070182,0.69954,92399.0,92398.0,0.67571]
[1765408070571,0.69554,92399.0,92398.0,0.67471]
[1765408070778,0.69954,92399.0,92398.0,0.67571]
[1765408071375,0.009,92399.0,92398.0,0.67571]
[1765408071573,0.35779,92399.0,92398.0,0.67571]
[1765408071775,0.69954,92399.0,92398.0,0.67571]
[1765408072584,0.009,92399.0,92398.0,0.67571]
[1765408073381,0.3609624,92403.0,92402.0,0.67371]
[1765408073585,0.0001624,92403.0,92402.0,0.71694475]
[1765408074372,0.3608,92419.0,92408.0,0.10036]
[1765408074584,0.7013584,92418.0,92417.0,0.67371]
[1765408074883,0.7013584,92418.0,92403.0,0.22352342]
[1765408074884,0.69054,92411.0,92410.0,1.1880093]
[1765408075091,0.69054,92411.0,92410.0,1.22098356]
[1765408075583,0.69054,92417.0,92416.0,0.67371]
[1765408076886,0.69054,92411.0,92410.0,0.67471]
[1765408077978,0.69054,92411.0,92410.0,0.67371]
[1765408078483,0.005,92411.0,92410.0,0.67471]
[1765408078683,0.009,92411.0,92410.0,0.67571]
[1765408080187,0.70792,92411.0,92410.0,0.67571]
[1765408081586,0.70792,92411.0,92410.0,0.6865293]
[1765408081899,1.06872,92411.0,92410.0,0.5054]
[1765408082083,1.06872,92411.0,92410.0,1.19046]
[1765408083292,1.06872,92411.0,92410.0,0.68706]
[1765408084779,1.06872,92411.0,92410.0,0.002]
[1765408087489,1.06872,92411.0,92410.0,0.3461]
[1765408087690,1.06872,92411.0,92410.0,0.68706]
[1765408089684,0.3698,92411.0,92410.0,0.68706]
[1765408089891,0.3698,92411.0,92410.0,0.72003147]
[1765408093000,1.03968,92411.0,92410.0,0.03497147]
[1765408093198,1.03968,92411.0,92410.0,0.73379147]
[1765408093997,1.03968,92411.0,92410.0,0.38348147]
[1765408094507,1.03968,92411.0,92410.0,0.73379147]
[1765408095794,0.3698,92411.0,92410.0,0.76280285]
[1765408096189,1.0504992,92411.0,92410.0,0.76280285]
[1765408096394,1.0504992,92411.0,92410.0,0.7628972]
[1765408098494,1.0504992,92411.0,92410.0,0.70082]
[1765408098703,1.0504992,92411.0,92410.0,0.06430877]
[1765408098906,1.0504992,92411.0,92410.0,0.03519594]
[1765408101106,1.0504992,92411.0,92410.0,0.00167539]
[1765408101302,1.4112992,92411.0,92410.0,0.00167539]
[1765408103408,1.4112992,92411.0,92410.0,0.70049539]
[1765408104100,1.4112992,92411.0,92410.0,0.03469261]
[1765408104300,1.4112992,92411.0,92410.0,0.00167539]
[1765408104810,1.4112992,92411.0,92410.0,0.03469128]
[1765408105193,1.4112992,92411.0,92410.0,0.00167539]
[1765408111201,0.7074103,92402.0,92401.0,0.00016231]
[1765408111407,1.5715703,92402.0,92401.0,0.00016231]
[1765408113305,1.5715703,92402.0,92401.0,0.00216231]
[1765408113613,1.5785703,92402.0,92401.0,0.00216231]
[1765408114014,1.66719958,92402.0,92401.0,0.00216231]
[1765408114212,1.66319958,92402.0,92401.0,0.00116231]
[1765408114410,1.66919958,92402.0,92401.0,0.00216231]
[1765408114608,1.5805703,92402.0,92401.0,0.00216231]
[1765408116606,1.5805703,92402.0,92401.0,0.69065231]
[1765408116806,0.7164103,92402.0,92401.0,0.69065231]